bitfinex/quotes_SOLUSD_20230404
["timestamp","ask_amount","ask_price","bid_price","bid_amount"]
[1680627963971,17.0,20.893,20.874,108.0792]
[1680627964152,17.0,20.893,20.875,20.0]
[1680627967162,17.0,20.893,20.879,20.0]
[1680627967577,17.0,20.893,20.874,108.0792]
[1680627967870,17.0,20.893,20.875,20.0]
[1680627968257,20.0,20.894,20.875,20.0]
[1680627968453,17.0,20.893,20.875,20.0]
[1680627968651,17.0,20.894,20.875,20.0]
[1680627968956,17.0,20.894,20.876,17.0]
[1680627969362,17.0,20.894,20.877,20.0]
[1680627972555,20.0,20.893,20.877,20.0]
[1680627972759,17.0,20.892,20.877,20.0]
[1680627975364,17.0,20.892,20.875,20.0]
[1680627978263,17.0,20.892,20.877,20.0]
[1680627979973,20.0,20.893,20.877,20.0]
[1680627980173,20.0,20.895,20.879,20.0]
[1680627980475,17.0,20.894,20.879,20.0]
[1680627981062,20.0,20.893,20.879,20.0]
[1680627983474,20.0,20.895,20.879,20.0]
[1680627983780,17.0,20.894,20.879,20.0]
[1680627983974,20.0,20.893,20.879,20.0]
[1680627988276,20.0,20.893,20.878,110.8249]
[1680627988479,17.0,20.892,20.878,110.8249]
[1680627998384,20.0,20.893,20.878,110.8249]
[1680627998583,20.0,20.895,20.878,110.8249]
[1680627998881,20.0,20.895,20.879,20.0]
[1680627999065,20.0,20.897,20.879,20.0]
[1680627999469,27.19900344,20.897,20.879,20.0]
[1680627999982,17.0,20.896,20.879,20.0]
[1680628000174,20.0,20.895,20.879,20.0]
[1680628000376,17.0,20.894,20.879,20.0]
[1680628000578,20.0,20.893,20.879,20.0]
[1680628000889,53.74096968,20.898,20.879,20.0]
[1680628000890,110.0634,20.9,20.88,44.22]
[1680628001083,27.28,20.91,20.89,27.22]
[1680628001272,118.3483,20.912,20.89,27.22]
[1680628001471,118.3483,20.912,20.891,20.0]
[1680628001691,118.3483,20.912,20.891,37.0]
[1680628001992,118.3483,20.912,20.891,20.0]
[1680628002168,118.3483,20.912,20.892,20.0]
[1680628002584,118.3483,20.912,20.893,20.0]
[1680628003169,17.0,20.91,20.894,20.0]
[1680628003878,20.0,20.911,20.9,27.26]
[1680628005266,20.0,20.911,20.901,20.0]
[1680628007384,138.47,20.92,20.901,20.0]
[1680628007573,37.0,20.919,20.901,20.0]
[1680628014672,37.0,20.919,20.9,27.26]
[1680628014987,37.0,20.919,20.901,20.0]
[1680628021088,56.121,20.919,20.9,27.26]
[1680628022897,56.121,20.919,20.893,20.0]
[1680628023198,27.19900344,20.918,20.893,20.0]
[1680628023388,37.0,20.917,20.893,20.0]
[1680628023775,37.0,20.917,20.896,20.0]
[1680628024794,20.0,20.916,20.896,20.0]
[1680628026986,17.0,20.911,20.896,20.0]
[1680628027301,17.0,20.911,20.895,109.9112]
[1680628027801,20.0,20.91,20.895,109.9112]
[1680628028103,17.0,20.909,20.895,109.9112]
[1680628028495,17.0,20.909,20.896,20.0]
[1680628028684,17.0,20.909,20.895,109.9112]
[1680628034012,20.0,20.908,20.895,109.9112]
[1680628034391,17.0,20.907,20.895,109.9112]
[1680628034594,20.0,20.906,20.895,109.9112]
[1680628035295,20.0,20.909,20.895,109.9112]
[1680628036105,17.0,20.908,20.895,109.9112]
[1680628036321,20.0,20.907,20.895,109.9112]
[1680628036613,17.0,20.906,20.895,109.9112]
[1680628036907,19.125,20.915,20.896,20.0]
[1680628037301,20.0,20.914,20.896,20.0]
[1680628038301,20.0,20.912,20.895,109.9112]
[1680628038501,17.0,20.911,20.895,109.9112]
[1680628038702,17.0,20.911,20.896,20.0]
[1680628038898,17.0,20.913,20.896,20.0]
[1680628041107,17.0,20.913,20.895,109.9112]
[1680628041309,17.0,20.913,20.896,20.0]
[1680628042211,17.0,20.913,20.895,109.9112]
[1680628042718,20.0,20.912,20.895,109.9112]
[1680628042908,17.0,20.911,20.895,109.9112]
[1680628047913,20.0,20.91,20.895,109.9112]
[1680628048104,17.0,20.909,20.895,109.9112]
[1680628050612,17.0,20.911,20.895,109.9112]
[1680628053821,17.0,20.913,20.895,109.9112]
[1680628054328,17.0,20.913,20.896,20.0]
[1680628055512,20.0,20.914,20.896,20.0]
[1680628057822,17.0,20.913,20.895,109.9112]
[1680628058019,17.0,20.913,20.896,20.0]
[1680628058724,17.0,20.913,20.895,109.9112]
[1680628058913,20.0,20.912,20.895,109.9112]
[1680628059114,17.0,20.911,20.895,109.9112]
[1680628060407,17.0,20.912,20.895,109.9112]
[1680628061810,19.128,20.911,20.895,109.9112]
[1680628062012,17.0,20.91,20.895,109.9112]
[1680628064230,17.0,20.91,20.896,20.0]
[1680628069114,17.0,20.912,20.895,109.9112]
[1680628070722,20.0,20.914,20.896,20.0]
[1680628070931,20.0,20.917,20.896,20.0]
[1680628071630,20.0,20.916,20.896,20.0]
[1680628072034,20.0,20.915,20.896,20.0]
[1680628072233,17.0,20.914,20.896,20.0]
[1680628080150,17.0,20.914,20.895,109.9112]
[1680628080331,17.0,20.914,20.896,20.0]
[1680628082247,17.0,20.914,20.895,109.9112]
[1680628083134,20.0,20.913,20.895,109.9112]
[1680628083349,17.0,20.912,20.895,109.9112]
[1680628088863,20.0,20.911,20.895,109.9112]
[1680628089073,17.0,20.91,20.895,109.9112]
[1680628091480,17.0,20.912,20.895,109.9112]
[1680628092865,17.0,20.913,20.895,109.9112]
[1680628093067,17.0,20.913,20.896,20.0]
[1680628093464,17.0,20.914,20.896,20.0]
[1680628095778,17.0,20.914,20.895,109.9112]
[1680628096078,20.0,20.913,20.895,109.9112]
[1680628096277,17.0,20.912,20.895,109.9112]
[1680628096979,17.0,20.914,20.895,109.9112]
[1680628098163,19.128,20.912,20.895,109.9112]
[1680628098360,17.0,20.911,20.895,109.9112]
[1680628098976,17.0,20.911,20.896,20.0]
[1680628101677,48.75044425,20.914,20.896,20.0]
[1680628102882,17.0,20.913,20.896,20.0]
[1680628106983,17.0,20.913,20.895,109.9112]
[1680628108784,7.19900344,20.912,20.895,109.9112]
[1680628109080,20.0,20.91,20.895,109.9112]
[1680628109290,55.94944769,20.912,20.895,109.9112]
[1680628109470,17.0,20.909,20.895,109.9112]
[1680628109970,37.0,20.911,20.895,109.9112]
[1680628112190,17.0,20.911,20.895,109.9112]
[1680628115292,17.0,20.911,20.896,20.0]
[1680628115989,17.0,20.911,20.895,109.9112]
[1680628122505,24.19900344,20.911,20.895,109.9112]
[1680628124706,20.0,20.91,20.895,109.9112]
[1680628125006,17.0,20.909,20.895,109.9112]
[1680628126807,17.0,20.91,20.895,109.9112]
[1680628127306,38.8,20.91,20.895,109.9112]
[1680628129811,38.8,20.91,20.896,20.0]
[1680628131706,38.8,20.91,20.895,109.9112]
[1680628137218,38.8,20.91,20.896,20.0]
[1680628137631,21.8,20.91,20.896,20.0]
[1680628138617,21.8,20.91,20.895,109.9112]
[1680628139114,17.0,20.909,20.895,109.9112]
[1680628140398,20.0,20.908,20.895,109.9112]
[1680628140603,17.0,20.907,20.895,109.9112]
[1680628140802,17.0,20.909,20.895,109.9112]
[1680628155928,21.8,20.91,20.895,109.9112]
[1680628156121,14.47430482,20.911,20.895,109.9112]
[1680628156321,165.7617908,20.92,20.895,109.9112]
[1680628157023,20.0,20.913,20.895,109.9112]
[1680628157328,17.0,20.912,20.895,109.9112]
[1680628159130,21.63,20.91,20.895,109.9112]
[1680628159331,17.0,20.909,20.895,109.9112]
[1680628166349,20.0,20.908,20.895,109.9112]
[1680628166643,20.0,20.907,20.895,109.9112]
[1680628166842,17.0,20.906,20.895,109.9112]
[1680628167026,20.0,20.905,20.895,109.9112]
[1680628167225,20.0,20.903,20.895,109.9112]
[1680628167439,17.0,20.902,20.895,109.9112]
[1680628169248,21.63,20.9,20.889,114.8566]
[1680628169439,37.0,20.899,20.889,114.8566]
[1680628169638,37.0,20.899,20.887,21.8]
[1680628169857,44.19900344,20.899,20.887,21.8]
[1680628170352,20.0,20.898,20.887,21.8]
[1680628170551,37.0,20.897,20.887,21.8]
[1680628171143,20.0,20.896,20.887,21.8]
[1680628171343,37.0,20.895,20.887,21.8]
[1680628171545,37.0,20.895,20.881,110.5237]
[1680628171856,20.0,20.894,20.881,110.5237]
[1680628172060,37.0,20.893,20.881,110.5237]
[1680628175644,20.0,20.893,20.881,110.5237]
[1680628175850,17.0,20.892,20.881,110.5237]
[1680628177665,20.0,20.893,20.881,110.5237]
[1680628177865,20.0,20.895,20.881,110.5237]
[1680628178971,17.0,20.894,20.881,110.5237]
[1680628179264,20.0,20.893,20.881,110.5237]
[1680628179456,17.0,20.892,20.881,110.5237]
[1680628179654,17.0,20.894,20.881,110.5237]
[1680628179848,17.0,20.895,20.881,110.5237]
[1680628180053,20.0,20.894,20.881,110.5237]
[1680628180258,17.0,20.893,20.881,110.5237]
[1680628186879,20.0,20.894,20.881,110.5237]
[1680628187369,17.0,20.893,20.881,110.5237]
[1680628187555,37.0,20.895,20.881,110.5237]
[1680628192573,20.0,20.894,20.881,110.5237]
[1680628192773,17.0,20.893,20.881,110.5237]
[1680628197578,20.0,20.895,20.881,110.5237]
[1680628197787,20.0,20.897,20.881,110.5237]
[1680628198987,20.0,20.896,20.881,110.5237]
[1680628199170,37.0,20.895,20.881,110.5237]
[1680628200987,20.0,20.894,20.881,110.5237]
[1680628201292,17.0,20.893,20.881,110.5237]
[1680628203386,20.0,20.892,20.881,110.5237]
[1680628203588,17.0,20.891,20.881,110.5237]
[1680628203770,20.0,20.89,20.881,110.5237]
[1680628203973,17.0,20.889,20.881,110.5237]
[1680628204784,20.0,20.888,20.881,110.5237]
[1680628204990,17.0,20.887,20.881,110.5237]
[1680628207372,17.0,20.889,20.881,110.5237]
[1680628207799,17.0,20.889,20.867,92.3907]
[1680628207977,40.0,20.888,20.868,113.2752]
[1680628208294,17.0,20.887,20.868,113.2752]
[1680628208491,20.0,20.886,20.868,113.2752]
[1680628208679,17.0,20.885,20.868,113.2752]
[1680628208898,20.0,20.884,20.868,113.2752]
[1680628209395,17.0,20.883,20.868,113.2752]
[1680628209999,36.155,20.883,20.868,113.2752]
[1680628210788,20.0,20.882,20.868,113.2752]
[1680628210997,17.0,20.881,20.868,113.2752]
[1680628211774,17.0,20.882,20.868,113.2752]
[1680628211970,17.0,20.883,20.868,113.2752]
[1680628212687,17.0,20.885,20.868,113.2752]
[1680628213689,20.0,20.884,20.868,113.2752]
[1680628213892,17.0,20.883,20.868,113.2752]
[1680628214991,17.0,20.883,20.868,151.597567]
[1680628215702,20.0,20.882,20.868,151.597567]
[1680628215878,17.0,20.881,20.868,151.597567]
[1680628216991,20.0,20.88,20.868,151.597567]
[1680628217195,17.0,20.879,20.868,151.597567]
[1680628218199,27.29,20.88,20.868,151.597567]
[1680628218495,39.153,20.884,20.868,151.597567]
[1680628219983,17.0,20.883,20.868,151.597567]
[1680628223205,17.0,20.885,20.868,151.597567]
[1680628223802,129.9737,20.889,20.868,151.597567]
[1680628224708,20.0,20.885,20.868,151.597567]
[1680628225192,17.0,20.884,20.868,151.597567]
[1680628225687,20.0,20.883,20.868,151.597567]
[1680628225888,17.0,20.882,20.868,151.597567]
[1680628229591,17.0,20.882,20.868,113.2752]
[1680628231295,17.0,20.884,20.868,113.2752]
[1680628236094,34.35685003,20.886,20.869,20.0]
[1680628236599,34.35685003,20.886,20.868,113.2752]
[1680628237294,17.0,20.885,20.868,113.2752]
[1680628237794,20.0,20.884,20.868,113.2752]
[1680628238011,17.0,20.883,20.868,113.2752]
[1680628239512,17.0,20.884,20.869,20.0]
[1680628239811,17.0,20.885,20.869,20.0]
[1680628242815,17.0,20.885,20.868,113.2752]
[1680628243602,20.0,20.884,20.868,113.2752]
[1680628243790,17.0,20.883,20.868,113.2752]
[1680628244196,37.0,20.885,20.868,113.2752]
[1680628246020,20.0,20.884,20.868,113.2752]
[1680628246206,17.0,20.883,20.868,113.2752]
[1680628254621,20.0,20.882,20.868,113.2752]
[1680628254820,17.0,20.881,20.868,113.2752]
[1680628258533,20.0,20.884,20.868,113.2752]
[1680628259433,20.0,20.886,20.868,113.2752]
[1680628260230,20.0,20.886,20.869,20.0]
[1680628260612,20.0,20.886,20.868,113.2752]
[1680628260825,17.0,20.885,20.868,113.2752]
[1680628261121,20.0,20.884,20.868,113.2752]
[1680628261326,17.0,20.883,20.868,113.2752]
[1680628262230,17.0,20.885,20.868,113.2752]
[1680628262728,20.0,20.884,20.868,113.2752]
[1680628262921,17.0,20.883,20.868,113.2752]
[1680628265221,20.0,20.882,20.868,113.2752]
[1680628265420,17.0,20.881,20.868,113.2752]
[1680628266230,20.0,20.88,20.868,113.2752]
[1680628266425,17.0,20.879,20.868,113.2752]
[1680628267626,17.0,20.881,20.868,113.2752]
[1680628270432,17.0,20.881,20.868,113.2752]
[1680628270651,20.0,20.88,20.868,113.2752]
[1680628270854,17.0,20.879,20.868,113.2752]
[1680628271231,17.0,20.881,20.868,113.2752]
[1680628275546,20.0,20.88,20.868,113.2752]
[1680628275749,17.0,20.879,20.868,113.2752]
[1680628277446,19.154,20.883,20.868,113.2752]
[1680628277648,20.0,20.888,20.868,113.2752]
[1680628278235,39.152,20.885,20.868,113.2752]
[1680628278849,17.0,20.884,20.868,113.2752]
[1680628279044,20.0,20.883,20.868,113.2752]
[1680628279239,17.0,20.882,20.868,113.2752]
[1680628279434,20.0,20.881,20.868,113.2752]
[1680628279636,17.0,20.88,20.868,113.2752]
[1680628280653,20.0,20.879,20.868,113.2752]
[1680628280953,17.0,20.878,20.868,113.2752]
[1680628284049,39.88816704,20.877,20.868,113.2752]
[1680628284242,17.0,20.876,20.867,92.3907]
[1680628284443,20.0,20.875,20.867,92.3907]
[1680628284745,17.0,20.874,20.867,92.3907]
[1680628285346,20.0,20.875,20.867,92.3907]
[1680628285546,20.0,20.879,20.867,92.3907]
[1680628285853,17.0,20.878,20.867,92.3907]
[1680628286157,20.0,20.877,20.867,92.3907]
[1680628286454,17.0,20.876,20.867,92.3907]
[1680628286638,20.0,20.875,20.867,92.3907]
[1680628288941,17.0,20.874,20.867,92.3907]
[1680628291359,19.156,20.881,20.867,92.3907]
[1680628291962,20.0,20.884,20.867,92.3907]
[1680628292267,20.0,20.884,20.868,108.236]
[1680628292756,27.21,20.88,20.868,108.236]
[1680628292956,37.0,20.879,20.868,108.236]
[1680628296375,20.0,20.879,20.868,108.236]
[1680628296575,27.21,20.88,20.868,108.236]
[1680628297764,14.61798756,20.887,20.869,20.0]
[1680628298072,20.0,20.886,20.869,20.0]
[1680628298574,20.0,20.888,20.869,20.0]
[1680628299070,17.0,20.887,20.869,20.0]
[1680628299265,20.0,20.886,20.869,20.0]
[1680628299447,17.0,20.885,20.869,20.0]
[1680628301653,17.0,20.885,20.868,108.236]
[1680628302769,17.0,20.885,20.869,20.0]
[1680628302955,7.19900344,20.888,20.87,27.2]
[1680628303150,27.19,20.89,20.87,44.2]
[1680628303550,20.0,20.883,20.871,20.0]
[1680628305469,20.0,20.883,20.872,17.0]
[1680628305662,20.0,20.883,20.873,20.0]
[1680628307681,20.0,20.883,20.871,20.0]
[1680628308070,27.29,20.88,20.867,92.3907]
[1680628308377,17.0,20.879,20.867,92.3907]
[1680628308556,20.0,20.878,20.867,92.3907]
[1680628312174,20.0,20.878,20.868,108.236]
[1680628314975,17.0,20.877,20.868,108.236]
[1680628315976,17.0,20.878,20.868,108.236]
[1680628317568,27.29,20.88,20.868,108.236]
[1680628317769,97.68194004,20.89,20.868,108.236]
[1680628317970,20.0,20.888,20.868,108.236]
[1680628318662,20.0,20.887,20.868,108.236]
[1680628318873,20.0,20.886,20.868,108.236]
[1680628319177,20.0,20.885,20.868,108.236]
[1680628319762,17.0,20.884,20.868,108.236]
[1680628320580,20.0,20.883,20.868,108.236]
[1680628320784,17.0,20.882,20.868,108.236]
[1680628321972,17.0,20.884,20.868,108.236]
[1680628326981,20.0,20.886,20.868,108.236]
[1680628327185,20.0,20.886,20.869,20.0]
[1680628327488,20.0,20.886,20.868,108.236]
[1680628328286,17.0,20.885,20.868,108.236]
[1680628328488,17.0,20.885,20.869,20.0]
[1680628328985,17.0,20.885,20.868,108.236]
[1680628336400,17.0,20.885,20.869,20.0]
[1680628337695,17.0,20.885,20.868,108.236]
[1680628338784,17.0,20.885,20.869,20.0]
[1680628340486,14.13722629,20.886,20.869,20.0]
[1680628340686,20.0,20.887,20.869,20.0]
[1680628340887,20.0,20.888,20.869,20.0]
[1680628341087,20.0,20.886,20.869,20.0]
[1680628341292,20.0,20.888,20.869,20.0]
[1680628341888,17.0,20.887,20.869,20.0]
[1680628342087,20.0,20.886,20.869,20.0]
[1680628342273,17.0,20.885,20.869,20.0]
[1680628343784,17.0,20.885,20.868,108.236]
[1680628344094,17.0,20.885,20.869,20.0]
[1680628349495,17.0,20.885,20.868,108.236]
[1680628349690,17.0,20.885,20.869,20.0]
[1680628350086,27.29,20.89,20.87,27.27]
[1680628350289,19.166855,20.893,20.871,20.0]
[1680628350601,19.166855,20.893,20.872,39.164]
[1680628350899,19.166855,20.893,20.873,17.0]
[1680628351086,19.166855,20.893,20.874,20.0]
[1680628351287,19.166855,20.893,20.875,37.0]
[1680628351492,19.166855,20.893,20.876,108.645]
[1680628351700,19.166855,20.893,20.878,20.0]
[1680628353399,19.166855,20.893,20.88,27.2]
[1680628354101,19.166855,20.893,20.881,20.0]
[1680628357597,19.166855,20.893,20.878,138.77020344]
[1680628359101,17.0,20.892,20.878,131.5712]
[1680628359605,19.166855,20.893,20.878,131.5712]
[1680628361395,17.0,20.892,20.878,131.5712]
[1680628364099,17.0,20.892,20.878,111.5712]
[1680628364812,34.23493822,20.898,20.878,111.5712]
[1680628364997,37.0,20.897,20.879,20.0]
[1680628368008,44.19900344,20.897,20.879,20.0]
[1680628371914,44.19900344,20.897,20.881,20.0]
[1680628372218,37.0,20.897,20.881,20.0]
[1680628372915,44.19900344,20.897,20.881,20.0]
[1680628373613,44.19900344,20.897,20.879,20.0]
[1680628375615,44.19900344,20.897,20.878,111.5712]
[1680628376011,44.19900344,20.897,20.879,20.0]
[1680628376320,44.19900344,20.897,20.878,111.5712]
[1680628376520,94.47972712,20.897,20.878,111.5712]
[1680628378023,20.0,20.896,20.878,111.5712]
[1680628378223,37.0,20.895,20.878,111.5712]
[1680628379224,37.0,20.895,20.879,20.0]
[1680628382516,37.0,20.895,20.878,111.5712]
[1680628389315,37.0,20.895,20.879,20.0]
[1680628390532,37.0,20.895,20.878,111.5712]
[1680628390728,37.0,20.895,20.879,20.0]
[1680628396533,37.0,20.895,20.878,111.5712]
[1680628397424,20.0,20.894,20.878,111.5712]
[1680628397627,17.0,20.893,20.878,111.5712]
[1680628398528,17.0,20.894,20.878,111.5712]
[1680628400130,27.29,20.89,20.878,111.5712]
[1680628400430,27.29,20.89,20.872,37.0]
[1680628400431,17.0,20.889,20.872,37.0]
[1680628400631,20.0,20.888,20.872,37.0]
[1680628400835,17.0,20.887,20.872,37.0]
[1680628404038,17.0,20.887,20.871,7.19900344]
[1680628404622,17.0,20.889,20.871,7.19900344]
[1680628407848,17.0,20.889,20.867,78.5097]
[1680628407849,20.0,20.888,20.867,78.5097]
[1680628408040,17.0,20.887,20.867,78.5097]
[1680628408232,20.0,20.886,20.867,78.5097]
[1680628408436,17.0,20.885,20.868,20.0]
[1680628408735,17.0,20.885,20.868,136.2893]
[1680628412244,17.0,20.885,20.871,20.0]
[1680628419553,17.0,20.885,20.871,20.0]
[1680628421651,31.27909828,20.885,20.871,20.0]
[1680628423144,31.27909828,20.885,20.869,20.0]
[1680628425756,31.27909828,20.885,20.868,116.2893]
[1680628432765,31.27909828,20.885,20.869,20.0]
[1680628432956,17.0,20.885,20.87,21.73]
[1680628433158,20.0,20.886,20.87,21.73]
[1680628433337,20.0,20.886,20.871,20.0]
[1680628433540,20.0,20.888,20.871,20.0]
[1680628433756,17.0,20.887,20.871,20.0]
[1680628433956,20.0,20.886,20.871,20.0]
[1680628434341,118.3461,20.889,20.872,17.0]
[1680628434546,118.3461,20.889,20.873,20.0]
[1680628434744,118.3461,20.889,20.874,20.0]
[1680628449266,118.3461,20.889,20.873,27.19900344]
[1680628449570,17.0,20.888,20.873,20.0]
[1680628450068,20.0,20.887,20.869,20.0]
[1680628450257,17.0,20.886,20.869,20.0]
[1680628450460,17.0,20.886,20.865,19.17]
[1680628450461,40.0,20.885,20.865,19.17]
[1680628450967,17.0,20.884,20.865,19.17]
[1680628451172,20.0,20.883,20.865,19.17]
[1680628451468,17.0,20.882,20.865,19.17]
[1680628452466,17.0,20.882,20.86,46.464]
[1680628452987,17.0,20.882,20.861,20.0]
[1680628453161,17.0,20.882,20.864,20.0]
[1680628453355,27.03,20.88,20.864,20.0]
[1680628453666,17.0,20.879,20.864,20.0]
[1680628454070,20.0,20.878,20.864,20.0]
[1680628454279,17.0,20.877,20.864,20.0]
[1680628456472,17.0,20.877,20.862,20.0]
[1680628456972,17.0,20.877,20.863,20.0]
[1680628457166,109.5003,20.878,20.864,20.0]
[1680628460661,109.5003,20.878,20.865,20.0]
[1680628462560,109.5003,20.878,20.866,17.0]
[1680628462956,109.5003,20.878,20.867,20.0]
[1680628483396,109.5003,20.878,20.864,20.0]
[1680628484595,109.5003,20.878,20.865,20.0]
[1680628488495,109.5003,20.878,20.864,20.0]
[1680628490301,17.0,20.877,20.864,20.0]
[1680628490484,17.0,20.877,20.862,20.0]
[1680628491187,17.0,20.877,20.861,20.0]
[1680628493399,17.0,20.877,20.862,20.0]
[1680628500499,17.0,20.877,20.863,20.0]
[1680628502008,17.0,20.877,20.862,20.0]
[1680628506611,109.5003,20.878,20.863,37.0]
[1680628507008,109.5003,20.878,20.865,20.0]
[1680628510411,109.5003,20.878,20.864,20.0]
[1680628510601,17.0,20.877,20.864,40.0]
[1680628510801,17.0,20.877,20.864,20.0]
[1680628511603,17.0,20.877,20.863,20.0]
[1680628511819,17.0,20.877,20.864,20.0]
[1680628516622,17.0,20.877,20.865,20.0]
[1680628520209,17.0,20.877,20.864,20.0]
[1680628522230,17.0,20.877,20.865,20.0]
[1680628524232,17.0,20.877,20.864,20.0]
[1680628536221,20.0,20.876,20.864,20.0]
[1680628536428,17.0,20.875,20.864,20.0]
[1680628536626,17.0,20.875,20.861,40.0]
[1680628537135,17.0,20.877,20.861,40.0]
[1680628537736,17.0,20.877,20.861,60.0]
[1680628547137,17.0,20.877,20.861,172.5571]
[1680628551636,109.5003,20.878,20.864,19.171]
[1680628551832,21.68,20.89,20.87,21.71]
[1680628552030,21.68,20.89,20.871,20.0]
[1680628552438,20.0,20.886,20.871,20.0]
[1680628552838,21.68,20.89,20.872,17.0]
[1680628553041,21.68,20.89,20.873,40.0]
[1680628553233,111.6692,20.891,20.874,19.161]
[1680628553943,111.6692,20.891,20.875,20.0]
[1680628554327,17.0,20.888,20.875,20.0]
[1680628557534,21.43394166,20.898,20.875,20.0]
[1680628557740,20.0,20.897,20.876,125.0235]
[1680628558047,20.0,20.897,20.877,20.0]
[1680628559858,20.0,20.896,20.877,20.0]
[1680628560153,20.0,20.895,20.877,20.0]
[1680628560354,17.0,20.894,20.877,20.0]
[1680628563553,17.0,20.894,20.876,108.0235]
[1680628563750,20.0,20.893,20.876,108.0235]
[1680628563953,17.0,20.892,20.876,108.0235]
[1680628564754,27.17,20.89,20.87,14.08339023]
[1680628565054,20.0,20.888,20.87,108.6846]
[1680628565261,37.0,20.887,20.87,108.6846]
[1680628565443,20.0,20.886,20.87,108.6846]
[1680628565639,17.0,20.885,20.87,108.6846]
[1680628566043,17.0,20.887,20.87,108.6846]
[1680628566259,20.0,20.886,20.87,108.6846]
[1680628566454,17.0,20.885,20.87,108.6846]
[1680628566954,17.0,20.885,20.868,14.67180206]
[1680628567170,17.0,20.885,20.866,19.169]
[1680628567343,17.0,20.885,20.868,20.0]
[1680628568149,20.0,20.886,20.868,20.0]
[1680628568357,17.0,20.885,20.868,20.0]
[1680628568561,17.0,20.886,20.868,20.0]
[1680628568770,20.0,20.885,20.868,20.0]
[1680628568968,17.0,20.884,20.868,20.0]
[1680628572449,17.0,20.884,20.867,135.6235]
[1680628572663,17.0,20.884,20.868,20.0]
[1680628574661,20.0,20.885,20.868,27.19900344]
[1680628574966,20.0,20.888,20.871,20.0]
[1680628575152,17.0,20.887,20.871,20.0]
[1680628575351,20.0,20.886,20.871,20.0]
[1680628583773,20.0,20.886,20.872,17.0]
[1680628583978,20.0,20.888,20.873,20.0]
[1680628584178,108.0458,20.889,20.873,20.0]
[1680628584363,108.0458,20.889,20.874,37.0]
[1680628584557,108.0458,20.889,20.874,44.19900344]
[1680628584862,14.23493822,20.898,20.875,7.19900344]